fUSD/lending_fUSD_20260628
["ID","MTS","AMOUNT","RATE_DAILY","PERIOD"]
[426542294,1782574238000,-500.0,0.00012792,2]
[426542320,1782574238000,-638.62343644,0.00012792,2]
[426542325,1782574238000,-500.0,0.00012792,2]
[426542327,1782574238000,-500.0,0.00012792,2]
[426542331,1782574238000,-638.62343644,0.00012792,2]
[426542318,1782574238000,-638.62343644,0.00012792,2]
[426542314,1782574238000,-638.62343644,0.00012792,2]
[426542425,1782574239000,-638.62343644,0.00012792,2]
[426542436,1782574239000,-1027.78057309,0.00012792,2]
[426542426,1782574239000,-638.62343644,0.00012792,2]
[426542423,1782574239000,-638.62343644,0.00012792,2]
[426542407,1782574239000,-638.62343644,0.00012792,2]
[426542418,1782574239000,-638.62343644,0.00012792,2]
[426542403,1782574239000,-638.62343644,0.00012792,2]
[426542411,1782574239000,-638.62343644,0.00012792,2]
[426542401,1782574239000,-638.62343644,0.00012792,2]
[426542421,1782574239000,-638.62343644,0.00012792,2]
[426542427,1782574239000,-638.62343644,0.00012792,2]
[426542434,1782574239000,-1027.78057309,0.00012792,2]
[426542435,1782574239000,-1027.78057309,0.00012792,2]
[426542432,1782574239000,-1027.78057309,0.00012792,2]
[426542429,1782574239000,-1027.78057309,0.00012792,2]
[426542431,1782574239000,-1027.78057309,0.00012792,2]
[426542430,1782574239000,-1027.78057309,0.00012792,2]
[426542438,1782574239000,-1429546.8791,0.00012793,2]
[426542440,1782574239000,-900.0,0.000128,4]
[426542441,1782574239000,-287.50240518,0.00012835,2]
[426542439,1782574239000,-168.85,0.000128,2]
[426542437,1782574239000,-1027.78057306,0.00012792,2]
[426542413,1782574239000,-638.62343644,0.00012792,2]
[426542428,1782574239000,-1027.78057309,0.00012792,2]
[426542415,1782574239000,-500.0,0.00012792,2]
[426542381,1782574239000,-638.62343644,0.00012792,2]
[426542420,1782574239000,-638.62343644,0.00012792,2]
[426542361,1782574239000,-638.62343644,0.00012792,2]
[426542372,1782574239000,-638.62343644,0.00012792,2]
[426542374,1782574239000,-500.0,0.00012792,2]
[426542377,1782574239000,-638.62343644,0.00012792,2]
[426542365,1782574239000,-638.62343644,0.00012792,2]
[426542376,1782574239000,-638.62343644,0.00012792,2]
[426542373,1782574239000,-638.62343644,0.00012792,2]
[426542375,1782574239000,-638.62343644,0.00012792,2]
[426542363,1782574239000,-638.62343644,0.00012792,2]
[426542367,1782574239000,-638.62343644,0.00012792,2]
[426542369,1782574239000,-638.62343644,0.00012792,2]
[426542371,1782574239000,-638.62343644,0.00012792,2]
[426542379,1782574239000,-638.62343644,0.00012792,2]
[426542443,1782574239000,-49715.0,0.00012877,2]
[426542385,1782574239000,-638.62343644,0.00012792,2]
[426542397,1782574239000,-638.62343644,0.00012792,2]
[426542393,1782574239000,-638.62343644,0.00012792,2]
[426542383,1782574239000,-638.62343644,0.00012792,2]
[426542386,1782574239000,-638.62343644,0.00012792,2]
[426542390,1782574239000,-500.0,0.00012792,2]
[426542389,1782574239000,-638.62343644,0.00012792,2]
[426542399,1782574239000,-638.62343644,0.00012792,2]
[426542394,1782574239000,-638.62343644,0.00012792,2]
[426542405,1782574239000,-638.62343644,0.00012792,2]
[426542416,1782574239000,-638.62343644,0.00012792,2]
[426542409,1782574239000,-638.62343644,0.00012792,2]
[426542446,1782574239000,-151.1389143,0.00012891,2]
[426542433,1782574239000,-1027.78057309,0.00012792,2]
[426542444,1782574239000,-159593.9996906,0.00012891,2]
[426542473,1782574239000,-500.0,0.00013698,2]
[426542479,1782574239000,-500.0,0.00013698,2]
[426542481,1782574239000,-500.0,0.00013698,2]
[426542480,1782574239000,-500.0,0.00013698,2]
[426542477,1782574239000,-500.0,0.00013698,2]
[426542475,1782574239000,-500.0,0.00013698,2]
[426542482,1782574239000,-500.0,0.00013698,2]
[426542483,1782574239000,-500.0,0.00013698,2]
[426542476,1782574239000,-500.0,0.00013698,2]
[426542485,1782574239000,-500.0,0.00013698,2]
[426542496,1782574239000,-521.06,0.00013698,2]
[426542495,1782574239000,-521.06,0.00013698,2]
[426542486,1782574239000,-521.06,0.00013698,2]
[426542488,1782574239000,-521.06,0.00013698,2]
[426542484,1782574239000,-500.0,0.00013698,2]
[426542489,1782574239000,-521.06,0.00013698,2]
[426542493,1782574239000,-521.06,0.00013698,2]
[426542490,1782574239000,-521.06,0.00013698,2]
[426542491,1782574239000,-521.06,0.00013698,2]
[426542494,1782574239000,-521.06,0.00013698,2]
[426542492,1782574239000,-521.06,0.00013698,2]
[426542497,1782574239000,-521.06,0.00013698,2]
[426542499,1782574239000,-500.0,0.00013698,2]
[426542500,1782574239000,-500.0,0.00013698,2]
[426542442,1782574239000,-507.18832148,0.00012835,2]
[426542478,1782574239000,-500.0,0.00013698,2]
[426542474,1782574239000,-500.0,0.00013698,2]
[426542498,1782574239000,-521.06,0.00013698,2]
[426542469,1782574239000,-423.02601729,0.00013698,2]
[426542472,1782574239000,-500.0,0.00013698,2]
[426542447,1782574239000,-1000.0,0.00012892,2]
[426542448,1782574239000,-153.0,0.00012893,2]
[426542450,1782574239000,-1200.0,0.000129,4]
[426542451,1782574239000,-216.51184279,0.00013079,2]
[426542449,1782574239000,-281.875,0.00012894,2]
[426542456,1782574239000,-500.0,0.00013698,2]
[426542457,1782574239000,-500.0,0.00013698,2]
[426542452,1782574239000,-160.0,0.00013079,2]
[426542454,1782574239000,-160.0,0.00013369,2]
[426542453,1782574239000,-304.93,0.00013365,2]
[426542458,1782574239000,-500.0,0.00013698,2]
[426542445,1782574239000,-52039.3879485,0.00012891,2]
[426542459,1782574239000,-500.0,0.00013698,2]
[426542470,1782574239000,-500.0,0.00013698,2]
[426542467,1782574239000,-500.0,0.00013698,2]
[426542465,1782574239000,-500.0,0.00013698,2]
[426542455,1782574239000,-405.91,0.00013537,2]
[426542463,1782574239000,-500.0,0.00013698,2]
[426542468,1782574239000,-500.0,0.00013698,2]
[426542460,1782574239000,-500.0,0.00013698,2]
[426542464,1782574239000,-500.0,0.00013698,2]
[426542466,1782574239000,-500.0,0.00013698,2]
[426542471,1782574239000,-500.0,0.00013698,2]
[426542461,1782574239000,-252.56,0.00013698,2]
[426542462,1782574239000,-500.0,0.00013698,2]
[426542546,1782574240000,-178.5,0.00014684,2]
[426542547,1782574240000,-1693.81,0.00014735,2]
[426542545,1782574240000,-178.5,0.00014684,2]
[426542544,1782574240000,-178.5,0.00014684,2]
[426542543,1782574240000,-178.5,0.00014684,2]
[426542539,1782574240000,-178.5,0.00014684,2]
[426542541,1782574240000,-178.5,0.00014684,2]
[426542538,1782574240000,-178.5,0.00014684,2]
[426542542,1782574240000,-178.5,0.00014684,2]
[426542534,1782574240000,-10342.4498872,0.0001399,2]
[426542548,1782574240000,-3870.67,0.00014753,2]
[426542552,1782574240000,-463.79,0.00014857,2]
[426542551,1782574240000,-202.12342155,0.00014849,5]
[426542553,1782574240000,-150.0,0.00014946,2]
[426542550,1782574240000,-1072.57038613,0.00014849,5]
[426542555,1782574240000,-433.0,0.00015002,2]
[426542554,1782574240000,-167.86,0.00014979,2]
[426542559,1782574240000,-189.06,0.00015284,2]
[426542556,1782574240000,-189.87395339,0.00015035,2]
[426542560,1782574240000,-167.86,0.00015344,2]
[426542562,1782574240000,-807.76,0.00015533,2]
[426542558,1782574240000,-1145.0,0.00015247,2]
[426542540,1782574240000,-178.5,0.00014684,2]
[426542549,1782574240000,-157.59,0.00014794,2]
[426542535,1782574240000,-2821.84010122,0.00014144,2]
[426542530,1782574240000,-500.0,0.00013907,2]
[426542536,1782574240000,-167.86,0.00014248,2]
[426542565,1782574240000,-807.76,0.00015921,2]
[426542504,1782574240000,-7239.55,0.00013699,2]
[426542507,1782574240000,-4828.71,0.00013699,2]
[426542515,1782574240000,-300.0,0.0001373,2]
[426542509,1782574240000,-16383.64,0.00013699,2]
[426542517,1782574240000,-300.0,0.0001373,2]
[426542513,1782574240000,-212.84,0.000137,2]
[426542516,1782574240000,-300.0,0.0001373,2]
[426542514,1782574240000,-300.0,0.0001373,2]
[426542511,1782574240000,-925.07,0.00013699,2]
[426542518,1782574240000,-300.0,0.0001373,2]
[426542537,1782574240000,-167.86,0.00014613,2]
[426542519,1782574240000,-600.0,0.0001373,2]
[426542532,1782574240000,-500.0,0.00013907,2]
[426542523,1782574240000,-600.0,0.0001373,2]
[426542526,1782574240000,-267.97465902,0.0001373,2]
[426542525,1782574240000,-200.0,0.0001373,2]
[426542522,1782574240000,-600.0,0.0001373,2]
[426542529,1782574240000,-167.86,0.00013883,2]
[426542521,1782574240000,-600.0,0.0001373,2]
[426542520,1782574240000,-600.0,0.0001373,2]
[426542524,1782574240000,-200.0,0.0001373,2]
[426542528,1782574240000,-255.0,0.00013796,2]
[426542533,1782574240000,-500.0,0.00013907,2]
[426542531,1782574240000,-500.0,0.00013907,2]
[426542564,1782574240000,-212.84,0.000159,2]
[426542579,1782574240000,-624.14,0.00016438,2]
[426542567,1782574240000,-807.76,0.0001631,2]
[426542598,1782574240000,-151.0,0.00018997,2]
[426542593,1782574240000,-463.79,0.00018572,2]
[426542602,1782574240000,-521.06,0.00018999,2]
[426542595,1782574240000,-666.32,0.0001872,2]
[426542600,1782574240000,-500.0,0.00018999,2]
[426542594,1782574240000,-334.73,0.0001872,2]
[426542596,1782574240000,-5627.08,0.0001872,2]
[426542601,1782574240000,-521.06,0.00018999,2]
[426542599,1782574240000,-500.0,0.00018999,2]
[426542597,1782574240000,-350.0,0.00018723,2]
[426542603,1782574240000,-392533.49629496,0.00019,2]
[426542592,1782574240000,-2821.84010122,0.00018478,2]
[426542609,1782574240000,-231.6568292,0.000194,2]
[426542608,1782574240000,-413.81,0.00019355,7]
[426542605,1782574240000,-500.0,0.00019178,2]
[426542607,1782574240000,-1026.5706,0.00019335,2]
[426542611,1782574240000,-179.0,0.000195,2]
[426542610,1782574240000,-212.84,0.000195,2]
[426542612,1782574240000,-784.0,0.000195,2]
[426542613,1782574240000,-357.83847553,0.000197,2]
[426542614,1782574240000,-1000.0,0.00019845,2]
[426542616,1782574240000,-405.0,0.00019939,2]
[426542615,1782574240000,-2821.84010122,0.00019922,2]
[426542557,1782574240000,-256.01,0.00015107,2]
[426542606,1782574240000,-173.28503155,0.00019178,2]
[426542590,1782574240000,-758.723396,0.00018335,2]
[426542604,1782574240000,-500.0,0.00019178,2]
[426542591,1782574240000,-161.37,0.00018383,2]
[426542580,1782574240000,-721.46,0.00016438,2]
[426542561,1782574240000,-200.0,0.00015419,2]
[426542566,1782574240000,-320.0,0.00016296,2]
[426542563,1782574240000,-2821.84010122,0.00015589,2]
[426542568,1782574240000,-500.0,0.00016438,2]
[426542570,1782574240000,-500.0,0.00016438,2]
[426542572,1782574240000,-500.0,0.00016438,2]
[426542569,1782574240000,-500.0,0.00016438,2]
[426542573,1782574240000,-500.0,0.00016438,2]
[426542575,1782574240000,-500.0,0.00016438,2]
[426542577,1782574240000,-500.0,0.00016438,2]
[426542576,1782574240000,-500.0,0.00016438,2]
[426542571,1782574240000,-340.30886457,0.00016438,2]
[426542588,1782574240000,-10000.0,0.00017132,2]
[426542574,1782574240000,-500.0,0.00016438,2]
[426542587,1782574240000,-500.0,0.00017123,2]
[426542585,1782574240000,-807.76,0.00017086,2]
[426542586,1782574240000,-1340.4006559,0.00017108,2]
[426542584,1782574240000,-2821.84010122,0.00017033,2]
[426542589,1782574240000,-156.84109196,0.00017678,2]
[426542583,1782574240000,-10000.0,0.00017029,2]
[426542581,1782574240000,-807.76,0.00016698,2]
[426542617,1782574240000,-1281.426,0.00019939,2]
[426542578,1782574240000,-500.0,0.00016438,2]
[426542582,1782574240000,-463.79,0.00016715,2]
[426542660,1782574241000,-151.0,0.00020896,2]
[426542659,1782574241000,-151.0,0.00020896,2]
[426542657,1782574241000,-151.0,0.00020896,2]
[426542655,1782574241000,-151.0,0.00020896,2]
[426542656,1782574241000,-151.0,0.00020896,2]
[426542647,1782574241000,-151.0,0.00020896,2]
[426542651,1782574241000,-151.0,0.00020896,2]
[426542649,1782574241000,-151.0,0.00020896,2]
[426542650,1782574241000,-151.0,0.00020896,2]
[426542652,1782574241000,-151.0,0.00020896,2]
[426542658,1782574241000,-151.0,0.00020896,2]
[426542654,1782574241000,-151.0,0.00020896,2]
[426542662,1782574241000,-227.0,0.00021,2]
[426542673,1782574241000,-3337.70468199,0.00021713,2]
[426542665,1782574241000,-233.0,0.00021,2]
[426542663,1782574241000,-315.0,0.00021,2]
[426542664,1782574241000,-352.0,0.00021,2]
[426542667,1782574241000,-343.0,0.00021,2]
[426542669,1782574241000,-152.26269015,0.0002117,2]
[426542666,1782574241000,-153.0,0.00021,2]
[426542668,1782574241000,-175.0,0.00021,2]
[426542677,1782574241000,-3337.70468199,0.00021742,2]
[426542670,1782574241000,-2821.84010122,0.00021367,2]
[426542672,1782574241000,-226.825827,0.00021533,2]
[426542671,1782574241000,-152.26269015,0.00021444,2]
[426542648,1782574241000,-151.0,0.00020896,2]
[426542661,1782574241000,-151.0,0.00020896,2]
[426542646,1782574241000,-151.0,0.00020896,2]
[426542620,1782574241000,-3570.441,0.00019939,2]
[426542645,1782574241000,-151.0,0.00020896,2]
[426542618,1782574241000,-1365.552,0.00019939,2]
[426542619,1782574241000,-1234.592,0.00019939,2]
[426542674,1782574241000,-152.26269015,0.00021718,2]
[426542630,1782574241000,-343.0,0.0002,2]
[426542628,1782574241000,-154.20718968,0.0002,2]
[426542623,1782574241000,-227.0,0.0002,2]
[426542625,1782574241000,-352.0,0.0002,2]
[426542624,1782574241000,-315.0,0.0002,2]
[426542621,1782574241000,-3004.09281809,0.0001995,2]
[426542627,1782574241000,-233.0,0.0002,2]
[426542622,1782574241000,-400.0,0.0002,2]
[426542626,1782574241000,-162.50414315,0.0002,2]
[426542629,1782574241000,-153.0,0.0002,2]
[426542631,1782574241000,-175.0,0.0002,2]
[426542632,1782574241000,-4615.81,0.0002,2]
[426542636,1782574241000,-163.736541,0.00020479,2]
[426542634,1782574241000,-255.99,0.00020313,2]
[426542633,1782574241000,-390.0,0.00020167,5]
[426542635,1782574241000,-463.79,0.00020429,2]
[426542638,1782574241000,-1693.81,0.00020629,2]
[426542637,1782574241000,-211.066634,0.00020479,2]
[426542639,1782574241000,-174.13974192,0.00020896,2]
[426542641,1782574241000,-151.0,0.00020896,2]
[426542640,1782574241000,-1182.8212258,0.00020896,2]
[426542643,1782574241000,-151.0,0.00020896,2]
[426542644,1782574241000,-151.0,0.00020896,2]
[426542653,1782574241000,-151.0,0.00020896,2]
[426542642,1782574241000,-152.26269015,0.00020896,2]
[426542675,1782574241000,-3337.70468199,0.00021722,2]
[426542687,1782574241000,-521.06,0.00021999,2]
[426542678,1782574241000,-3337.70468199,0.00021748,2]
[426542707,1782574241000,-3337.70468199,0.00022446,2]
[426542715,1782574241000,-152.26269015,0.0002254,2]
[426542711,1782574241000,-1874.54,0.00022466,2]
[426542712,1782574241000,-210.91860273,0.00022466,3]
[426542713,1782574241000,-3337.70468199,0.00022481,2]
[426542710,1782574241000,-802.51,0.00022466,2]
[426542714,1782574241000,-3337.70468199,0.0002252,2]
[426542719,1782574241000,-3337.70468199,0.00022642,2]
[426542730,1782574241000,-282.0,0.00022939,2]
[426542720,1782574241000,-3337.70468199,0.00022749,2]
[426542721,1782574241000,-200.0,0.00022766,2]
[426542729,1782574241000,-3337.70468199,0.00022885,2]
[426542727,1782574241000,-210.91860274,0.00022864,4]
[426542676,1782574241000,-156.84109195,0.00021724,2]
[426542718,1782574241000,-3337.70468199,0.0002264,2]
[426542723,1782574241000,-3337.70468199,0.0002281,2]
[426542724,1782574241000,-2821.84010122,0.00022811,2]
[426542728,1782574241000,-3337.70468199,0.00022878,2]
[426542725,1782574241000,-152.26269015,0.00022814,2]
[426542726,1782574241000,-2006.57750063,0.00022835,2]
[426542737,1782574241000,-315.0,0.00023,2]
[426542731,1782574241000,-1277.0,0.00022939,2]
[426542736,1782574241000,-227.0,0.00023,2]
[426542734,1782574241000,-3563.0,0.00022939,2]
[426542735,1782574241000,-619.0,0.00022988,5]
[426542733,1782574241000,-1230.0,0.00022939,2]
[426542732,1782574241000,-1361.0,0.00022939,2]
[426542704,1782574241000,-463.79,0.00022286,2]
[426542717,1782574241000,-3337.70468199,0.00022613,2]
[426542722,1782574241000,-3337.70468199,0.00022799,2]
[426542708,1782574241000,-2006.57750063,0.00022455,2]
[426542716,1782574241000,-201.0,0.00022565,10]
[426542689,1782574241000,-45303.39,0.00022,2]
[426542683,1782574241000,-49618.0,0.00021973,2]
[426542679,1782574241000,-3337.70468199,0.00021864,2]
[426542681,1782574241000,-2000.0,0.000219,2]
[426542685,1782574241000,-152.26269015,0.00021992,2]
[426542682,1782574241000,-5000.0,0.00021918,2]
[426542684,1782574241000,-3337.70468199,0.00021985,2]
[426542680,1782574241000,-1500.0,0.000219,7]
[426542690,1782574241000,-227.0,0.00022,2]
[426542686,1782574241000,-500.0,0.00021999,2]
[426542692,1782574241000,-352.0,0.00022,2]
[426542703,1782574241000,-152.26269015,0.00022266,2]
[426542688,1782574241000,-450.0,0.00022,2]
[426542700,1782574241000,-3337.70468199,0.00022124,2]
[426542706,1782574241000,-3337.70468199,0.00022337,2]
[426542702,1782574241000,-3337.70468199,0.00022262,2]
[426542709,1782574241000,-1637.69,0.00022466,2]
[426542705,1782574241000,-3337.70468199,0.00022322,2]
[426542698,1782574241000,-379.49,0.00022,2]
[426542699,1782574241000,-3337.70468199,0.00022038,2]
[426542696,1782574241000,-175.0,0.00022,2]
[426542697,1782574241000,-212.84,0.00022,7]
[426542695,1782574241000,-343.0,0.00022,2]
[426542694,1782574241000,-155.5238928,0.00022,2]
[426542701,1782574241000,-3337.70468199,0.00022141,2]
[426542691,1782574241000,-315.0,0.00022,2]
[426542693,1782574241000,-233.0,0.00022,2]
[426542756,1782574242000,-500.0,0.00023999,2]
[426542759,1782574242000,-129633.62687944,0.00024,2]
[426542753,1782574242000,-169.52913741,0.00023811,2]
[426542758,1782574242000,-267.53529413,0.00023999,2]
[426542755,1782574242000,-152.26269015,0.0002391,2]
[426542760,1782574242000,-500.0,0.00024,2]
[426542768,1782574242000,-4292.41437361,0.00024,2]
[426542766,1782574242000,-175.0,0.00024,2]
[426542764,1782574242000,-233.0,0.00024,2]
[426542762,1782574242000,-315.0,0.00024,2]
[426542767,1782574242000,-2000.0,0.00024,2]
[426542754,1782574242000,-161.73191219,0.00023811,2]
[426542763,1782574242000,-352.0,0.00024,2]
[426542765,1782574242000,-343.0,0.00024,2]
[426542757,1782574242000,-521.06,0.00023999,2]
[426542738,1782574242000,-352.0,0.00023,2]
[426542745,1782574242000,-2000.0,0.000233,2]
[426542770,1782574242000,-232.50918327,0.0002419,2]
[426542740,1782574242000,-233.0,0.00023,2]
[426542741,1782574242000,-343.0,0.00023,2]
[426542739,1782574242000,-287.0,0.00023,2]
[426542743,1782574242000,-152.26269015,0.00023088,2]
[426542742,1782574242000,-175.0,0.00023,2]
[426542761,1782574242000,-227.0,0.00024,2]
[426542744,1782574242000,-154.42815987,0.00023288,2]
[426542748,1782574242000,-152.26269015,0.00023636,2]
[426542751,1782574242000,-173.3958177,0.00023811,2]
[426542752,1782574242000,-155.10109763,0.00023811,2]
[426542750,1782574242000,-176.88484365,0.00023811,2]
[426542746,1782574242000,-152.26269015,0.00023362,2]
[426542749,1782574242000,-180.49111621,0.00023811,2]
[426542747,1782574242000,-47660.6,0.000234,2]
[426542773,1782574242000,-5707.92,0.000242,2]
[426542788,1782574242000,-54501.56208891,0.00025,2]
[426542772,1782574242000,-50000.0,0.000242,2]
[426542769,1782574242000,-152.26269015,0.00024184,2]
[426542806,1782574242000,-353.76968729,0.00025075,2]
[426542805,1782574242000,-360.98223243,0.00025075,2]
[426542803,1782574242000,-157.91820802,0.0002507,2]
[426542801,1782574242000,-351.74623189,0.00025,2]
[426542804,1782574242000,-191.43998517,0.0002507,2]
[426542802,1782574242000,-187.45489804,0.00025,2]
[426542797,1782574242000,-228.7724219,0.00025,2]
[426542796,1782574242000,-38609.47071683,0.00025,2]
[426542798,1782574242000,-327.88279101,0.00025,2]
[426542800,1782574242000,-235.83118614,0.00025,2]
[426542799,1782574242000,-356.40283707,0.00025,2]
[426542792,1782574242000,-591.90000133,0.00023,2]
[426542790,1782574242000,-701.2988162,0.00025,2]
[426542787,1782574242000,-521.06,0.00024999,2]
[426542794,1782574242000,-357510.10685181,0.00025,2]
[426542808,1782574242000,-346.7916354,0.00025075,2]
[426542789,1782574242000,-36479.55,0.00025,2]
[426542774,1782574242000,-2821.84010122,0.00024256,2]
[426542776,1782574242000,-379.49,0.00024559,7]
[426542778,1782574242000,-177.23,0.00024658,2]
[426542779,1782574242000,-1000.0,0.00024658,2]
[426542777,1782574242000,-163.25567929,0.00024657,2]
[426542775,1782574242000,-152.26269015,0.00024458,2]
[426542771,1782574242000,-50000.0,0.000242,2]
[426542783,1782574242000,-152.26269024,0.00024732,2]
[426542785,1782574242000,-500.0,0.00024999,2]
[426542784,1782574242000,-500.0,0.00024999,2]
[426542786,1782574242000,-521.06,0.00024999,2]
[426542782,1782574242000,-2068.0,0.000247,2]
[426542781,1782574242000,-153.98,0.00024658,2]
[426542780,1782574242000,-154.06,0.00024658,2]
[426542826,1782574243000,-321.46072249,0.00025454,2]
[426542823,1782574243000,-2000.0,0.000254,2]
[426542819,1782574243000,-647.7,0.00025173,2]
[426542825,1782574243000,-153.98,0.00025451,7]
[426542818,1782574243000,-482.55,0.00025163,2]
[426542816,1782574243000,-160.61156936,0.00025075,2]
[426542811,1782574243000,-339.05827482,0.00025075,2]
[426542828,1782574243000,-521.06,0.00025562,2]
[426542810,1782574243000,-310.20219525,0.00025075,2]
[426542814,1782574243000,-247.85867883,0.00025075,2]
[426542813,1782574243000,-238.16133376,0.00025075,2]
[426542812,1782574243000,-323.46382438,0.00025075,2]
[426542820,1782574243000,-644.5,0.00025173,2]
[426542829,1782574243000,-237.93,0.00025675,7]
[426542824,1782574243000,-154.06,0.00025451,7]
[426542827,1782574243000,-500.0,0.00025562,2]
[426542822,1782574243000,-248.7,0.00025173,2]
[426542842,1782574243000,-4823.01,0.000258,2]
[426542843,1782574243000,-24891.46721512,0.000258,2]
[426542837,1782574243000,-521.06,0.00025799,2]
[426542835,1782574243000,-285.64,0.00025799,2]
[426542832,1782574243000,-151.0,0.00025797,7]
[426542834,1782574243000,-500.0,0.00025799,2]
[426542833,1782574243000,-500.0,0.00025799,2]
[426542821,1782574243000,-194.19,0.00025173,2]
[426542838,1782574243000,-521.06,0.00025799,2]
[426542841,1782574243000,-28140.66119802,0.000258,2]
[426542830,1782574243000,-500.0,0.00025699,2]
[426542839,1782574243000,-521.06,0.00025799,2]
[426542840,1782574243000,-521.18,0.00025799,2]
[426542836,1782574243000,-521.06,0.00025799,2]
[426542831,1782574243000,-2821.84010122,0.000257,2]
[426542844,1782574245000,-125.32546866,0.000258,2]
[426542845,1782574245000,-801.54783843,0.000258,2]
[426542846,1782574245000,-37704.89168201,0.000258,2]
[426542849,1782574245000,-415.43,0.00012913,2]
[426542850,1782574245000,-992.09319047,0.000258,2]
[426542848,1782574245000,-1665.77830033,0.000258,2]
[426542847,1782574245000,-1244.07767784,0.000258,2]
[426542882,1782574246000,-541.47334864,0.00025917,2]
[426542884,1782574246000,-520.18745309,0.00025917,2]
[426542885,1782574246000,-157.94524419,0.00025917,2]
[426542875,1782574246000,-573.67,0.00025899,2]
[426542878,1782574246000,-11611.5569669,0.0002591,2]
[426542876,1782574246000,-482.28,0.00025899,2]
[426542877,1782574246000,-35610.2347096,0.0002591,2]
[426542883,1782574246000,-530.65453094,0.00025917,2]
[426542880,1782574246000,-382.87997034,0.00025912,2]
[426542894,1782574246000,-1361.0,0.00025939,2]
[426542886,1782574246000,-198.88748249,0.00025917,2]
[426542888,1782574246000,-508.58741223,0.00025917,2]
[426542889,1782574246000,-485.19573657,0.00025917,2]
[426542890,1782574246000,-476.32266751,0.00025917,2]
[426542887,1782574246000,-465.30329288,0.00025917,2]
[426542893,1782574246000,-282.0,0.00025939,2]
[426542892,1782574246000,-321.22313873,0.00025917,2]
[426542891,1782574246000,-495.71735766,0.00025917,2]
[426542881,1782574246000,-163.18815266,0.00025917,2]
[426542895,1782574246000,-1230.0,0.00025939,2]
[426542879,1782574246000,-315.83641604,0.00025912,2]
[426542873,1782574246000,-190.763756,0.000258,2]
[426542866,1782574246000,-600.0,0.000258,2]
[426542870,1782574246000,-190.763756,0.000258,2]
[426542896,1782574246000,-3563.0,0.00025939,2]
[426542851,1782574246000,-568.73118344,0.000126,2]
[426542853,1782574246000,-1748.17389532,0.000126,2]
[426542852,1782574246000,-4095.78501402,0.000126,2]
[426542855,1782574246000,-3559.80445567,0.000126,2]
[426542859,1782574246000,-140559.88862599,0.000258,2]
[426542854,1782574246000,-2212.376312,0.000126,2]
[426542856,1782574246000,-52243.03415307,0.000258,2]
[426542858,1782574246000,-60165.96386117,0.000258,2]
[426542874,1782574246000,-692.20971306,0.00025824,2]
[426542857,1782574246000,-320.89943504,0.000258,2]
[426542861,1782574246000,-523.46241767,0.000258,2]
[426542863,1782574246000,-541.5400405,0.000258,2]
[426542865,1782574246000,-634.69423242,0.000258,2]
[426542862,1782574246000,-165.863,0.000183,2]
[426542864,1782574246000,-1413.5691999,0.000258,2]
[426542869,1782574246000,-151.0,0.000258,2]
[426542868,1782574246000,-390849.02148673,0.000258,2]
[426542871,1782574246000,-190.763756,0.000258,2]
[426542872,1782574246000,-190.763756,0.000258,2]
[426542860,1782574246000,-255.0702,0.000258,2]
[426542900,1782574246000,-550.0,0.00026,2]
[426542940,1782574246000,-357.83847553,0.000267,2]
[426542897,1782574246000,-350.0,0.00025971,2]